bitfinex-derivatives/quotes_BNBF0:USTF0_20250710
["timestamp","ask_amount","ask_price","bid_price","bid_amount"]
[1752187424924,0.84716356,685.77,685.12,1.272]
[1752187425126,0.84716356,685.76,685.12,1.272]
[1752187425329,0.84716356,685.75,685.12,1.272]
[1752187425524,0.84716356,685.74,685.12,1.272]
[1752187425731,0.84716356,685.73,685.12,1.272]
[1752187425934,0.84716356,685.72,685.12,1.272]
[1752187426132,0.84716356,685.71,685.12,1.272]
[1752187426333,0.97691443,685.96,685.12,1.272]
[1752187426636,0.84682761,685.95,685.12,1.272]
[1752187426933,0.84682761,685.94,685.12,1.272]
[1752187427135,0.84682761,685.93,685.12,1.272]
[1752187427332,0.84682761,685.92,685.12,1.272]
[1752187427532,0.84682761,685.91,685.12,1.272]
[1752187427734,0.84682761,685.9,685.12,1.272]
[1752187427936,0.84682761,685.89,685.12,1.272]
[1752187428236,0.84682761,685.88,685.12,1.272]
[1752187428536,0.84682761,685.87,685.12,1.272]
[1752187428737,0.84682761,685.86,685.12,1.272]
[1752187428935,0.84682761,685.85,685.12,1.272]
[1752187429237,0.84682761,685.84,685.12,1.272]
[1752187429437,0.84682761,685.83,685.12,1.272]
[1752187429633,3.24767532,687.47,685.12,1.272]
[1752187429634,0.84682761,685.82,685.12,1.272]
[1752187429936,0.97691443,686.12,685.12,1.272]
[1752187429937,0.84682761,685.81,685.12,1.272]
[1752187430137,0.84682761,685.8,685.12,1.272]
[1752187430333,0.84682761,685.79,685.12,1.272]
[1752187430531,0.84682761,685.78,685.12,1.272]
[1752187430734,0.84682761,685.77,685.12,1.272]
[1752187430935,0.84682761,685.76,685.12,1.272]
[1752187431138,0.84682761,685.75,685.12,1.272]
[1752187431340,0.84682761,685.74,685.12,1.272]
[1752187431642,0.84682761,685.73,685.12,1.272]
[1752187431840,0.84682761,685.72,685.12,1.272]
[1752187432040,0.84682761,685.71,685.12,1.272]
[1752187432341,0.97691443,686.12,685.12,1.272]
[1752187432537,0.84682013,686.11,685.12,1.272]
[1752187432741,0.84682013,686.1,685.12,1.272]
[1752187432936,0.84682013,686.09,685.12,1.272]
[1752187433135,0.84682013,686.08,685.12,1.272]
[1752187433437,0.84682013,686.07,685.12,1.272]
[1752187433646,0.84682013,686.06,685.12,1.272]
[1752187433838,0.84682013,686.05,685.12,1.272]
[1752187434042,0.84682013,686.04,685.12,1.272]
[1752187434239,0.97691443,686.11,685.12,1.272]
[1752187434240,0.84682013,686.03,685.12,1.272]
[1752187434439,0.84682013,686.02,685.12,1.272]
[1752187434639,0.84682013,686.01,685.12,1.272]
[1752187434841,0.84682013,686.0,685.12,1.272]
[1752187435039,0.84682013,685.99,685.12,1.272]
[1752187435239,0.84682013,685.98,685.12,1.272]
[1752187435441,0.84682013,685.97,685.12,1.272]
[1752187435644,0.84682013,685.96,685.12,1.272]
[1752187435940,0.84682013,685.95,685.12,1.272]
[1752187436145,0.84682013,685.94,685.12,1.272]
[1752187436346,0.84682013,685.93,685.12,1.272]
[1752187436543,0.84682013,685.92,685.12,1.272]
[1752187436741,0.84682013,685.91,685.12,1.272]
[1752187436941,0.84682013,685.9,685.12,1.272]
[1752187437143,0.84682013,685.89,685.12,1.272]
[1752187437345,0.84682013,685.88,685.12,1.272]
[1752187437545,0.84682013,685.87,685.12,1.272]
[1752187437746,0.84682013,685.86,685.12,1.272]
[1752187437946,0.84682013,685.85,685.12,1.272]
[1752187438143,0.84682013,685.84,685.12,1.272]
[1752187438342,0.84682013,685.83,685.12,1.272]
[1752187438641,0.84682013,685.82,685.12,1.272]
[1752187438845,0.84682013,685.81,685.12,1.272]
[1752187439043,0.84682013,685.8,685.12,1.272]
[1752187439242,0.84682013,685.79,685.12,1.272]
[1752187439443,1.9642688,686.4,685.12,1.272]
[1752187439444,0.84682013,685.78,685.12,1.272]
[1752187439644,0.84682013,685.77,685.12,1.272]
[1752187439843,0.84682013,685.76,685.12,1.272]
[1752187440041,0.84682013,685.75,685.12,1.272]
[1752187440256,0.84682013,685.74,685.12,1.272]
[1752187440447,0.84682013,685.73,685.12,1.272]
[1752187440643,0.84682013,685.72,685.12,1.272]
[1752187440847,0.84682013,685.71,685.12,1.272]
[1752187441048,0.84682013,685.7,685.12,1.272]
[1752187441248,0.97691443,686.02,685.12,1.272]
[1752187441544,0.8466077,686.01,685.12,1.272]
[1752187441844,0.8466077,686.0,685.12,1.272]
[1752187442048,0.8466077,685.99,685.12,1.272]
[1752187442243,0.8466077,685.98,685.12,1.272]
[1752187442542,1.82352213,685.97,685.12,1.272]
[1752187442748,0.8466077,685.96,685.12,1.272]
[1752187442944,0.8466077,685.95,685.12,1.272]
[1752187443147,0.8466077,685.94,685.12,1.272]
[1752187443343,0.8466077,685.93,685.12,1.272]
[1752187443548,0.8466077,685.92,685.12,1.272]
[1752187443749,0.8466077,685.91,685.12,1.272]
[1752187443946,0.8466077,685.9,685.12,1.272]
[1752187444249,0.8466077,685.89,685.12,1.272]
[1752187444447,0.8466077,685.88,685.12,1.272]
[1752187444645,0.8466077,685.87,685.12,1.272]
[1752187444849,0.8466077,685.86,685.12,1.272]
[1752187445149,0.8466077,685.85,685.12,1.272]
[1752187445349,0.8466077,685.84,685.12,1.272]
[1752187445550,0.8466077,685.83,685.12,1.272]
[1752187445747,0.8466077,685.82,685.12,1.272]
[1752187445950,0.8466077,685.81,685.12,1.272]
[1752187446250,0.8466077,685.8,685.12,1.272]
[1752187446448,0.8466077,685.79,685.12,1.272]
[1752187446646,0.8466077,685.78,685.12,1.272]
[1752187446950,0.8466077,685.77,685.12,1.272]
[1752187447151,0.8466077,685.76,685.12,1.272]
[1752187447351,0.8466077,685.75,685.12,1.272]
[1752187447550,0.8466077,685.74,685.12,1.272]
[1752187447750,0.8466077,685.73,685.12,1.272]
[1752187447948,0.8466077,685.72,685.12,1.272]
[1752187448149,0.8466077,685.71,685.12,1.272]
[1752187448452,0.8466077,685.7,685.12,1.272]
[1752187448753,0.8466077,685.69,685.12,1.272]
[1752187448952,0.8466077,685.68,685.12,1.272]
[1752187449151,0.8466077,685.67,685.12,1.272]
[1752187449353,0.8466077,685.66,685.12,1.272]
[1752187449648,0.8466077,685.65,685.12,1.272]
[1752187449853,0.97691443,685.92,685.12,1.272]
[1752187450054,0.84711851,685.91,685.12,1.272]
[1752187450250,0.84711851,685.9,685.12,1.272]
[1752187450554,0.84711851,685.89,684.95,1.95823945]
[1752187450748,0.97691443,685.87,684.91,1.95823945]
[1752187450953,0.84711851,685.86,684.91,1.95823945]
[1752187451148,0.84711851,685.85,684.89,1.95823945]
[1752187451350,0.84711851,685.84,684.89,1.95823945]
[1752187451553,0.84711851,685.83,684.89,1.95823945]
[1752187451753,0.84711851,685.82,684.87,1.95823945]
[1752187451955,0.84711851,685.81,684.87,1.95823945]
[1752187452154,0.84711851,685.8,684.87,1.95823945]
[1752187452353,0.84711851,685.79,684.88,1.95823945]
[1752187452558,0.84711851,685.78,684.87,1.95823945]
[1752187452856,0.84711851,685.77,684.87,1.95823945]
[1752187453153,0.84711851,685.76,684.87,1.95823945]
[1752187453357,0.84711851,685.75,684.87,1.95823945]
[1752187453557,0.84711851,685.74,684.87,1.95823945]
[1752187453857,0.84711851,685.73,684.88,1.95823945]
[1752187454054,0.97691443,685.88,684.88,1.95823945]
[1752187454055,0.84711851,685.72,684.88,3.41223945]
[1752187454255,0.84711851,685.71,684.88,3.41223945]
[1752187454457,0.84711851,685.7,684.88,3.41223945]
[1752187454757,0.84711851,685.69,684.88,3.41223945]
[1752187455060,0.84711851,685.68,684.89,1.95823945]
[1752187455353,0.84711851,685.67,684.9,1.95823945]
[1752187455553,0.84711851,685.66,684.91,1.95823945]
[1752187455756,0.84711851,685.65,684.91,1.95823945]
[1752187455955,0.84711851,685.64,684.91,1.95823945]
[1752187456252,0.84711851,685.63,684.92,1.95823945]
[1752187456558,0.84711851,685.62,684.92,1.95823945]
[1752187456759,0.84711851,685.61,684.92,1.95823945]
[1752187457054,0.84711851,685.6,684.92,1.95823945]
[1752187457253,0.84711851,685.59,684.92,1.95823945]
[1752187457453,0.84711851,685.58,684.93,1.95823945]
[1752187457658,0.84711851,685.57,684.92,1.95823945]
[1752187457858,0.84711851,685.56,684.92,1.95823945]
[1752187458156,0.97691443,685.84,684.92,1.95823945]
[1752187458354,0.84823928,685.83,684.92,1.95823945]
[1752187458554,0.84823928,685.82,685.0,1.95823945]
[1752187458758,0.84823928,685.81,685.03,1.95823945]
[1752187458958,0.84823928,685.8,685.03,1.95823945]
[1752187459158,0.84823928,685.79,685.04,1.95823945]
[1752187459358,0.84823928,685.78,685.05,1.95823945]
[1752187459559,0.84823928,685.77,685.05,1.95823945]
[1752187459863,0.84823928,685.76,685.06,1.95823945]
[1752187460060,0.84823928,685.75,685.05,1.95823945]
[1752187460257,0.84823928,685.74,685.06,1.95823945]
[1752187460557,0.84823928,685.73,685.06,1.95823945]
[1752187460855,0.84823928,685.72,685.05,1.95823945]
[1752187461059,0.84823928,685.71,685.05,1.95823945]
[1752187461257,0.84823928,685.7,685.05,1.95823945]
[1752187461461,0.84823928,685.69,685.05,1.95823945]
[1752187461760,0.84823928,685.68,685.05,1.95823945]
[1752187461958,0.84823928,685.67,685.07,1.95823945]
[1752187462258,0.84823928,685.66,685.07,1.95823945]
[1752187462461,1.9642688,686.19,684.88,1.454]
[1752187462462,0.84823928,685.65,685.1,1.95823945]
[1752187462662,0.97691443,685.89,685.09,1.95823945]
[1752187462859,0.84839909,685.88,685.06,1.95823945]
[1752187463063,0.84839909,685.87,685.06,1.95823945]
[1752187463359,0.84839909,685.86,685.06,1.95823945]
[1752187463565,0.84839909,685.85,685.06,1.95823945]
[1752187463861,0.84839909,685.84,685.05,1.95823945]
[1752187464065,0.84839909,685.83,685.05,1.95823945]
[1752187464265,0.84839909,685.82,685.05,1.95823945]
[1752187464464,0.84839909,685.81,685.05,1.95823945]
[1752187464661,0.84839909,685.8,685.05,1.95823945]
[1752187464866,0.84839909,685.79,685.05,1.95823945]
[1752187465067,0.84839909,685.78,685.05,1.95823945]
[1752187465262,0.84839909,685.77,685.05,1.95823945]
[1752187465563,0.84839909,685.76,685.05,1.95823945]
[1752187465762,0.84839909,685.75,685.05,1.95823945]
[1752187466065,0.84839909,685.74,685.05,1.95823945]
[1752187466269,0.84839909,685.73,685.05,1.95823945]
[1752187466466,0.84839909,685.72,685.05,1.95823945]
[1752187466664,0.84839909,685.71,685.05,1.95823945]
[1752187466867,0.84839909,685.7,685.05,1.95823945]
[1752187467065,0.84839909,685.69,685.05,1.95823945]
[1752187467268,0.84839909,685.68,685.05,1.95823945]
[1752187467565,0.84839909,685.67,685.04,1.95823945]
[1752187467768,0.97691443,685.91,685.04,1.95823945]
[1752187467769,0.84839909,685.66,685.04,1.95823945]
[1752187468067,0.84839909,685.65,685.04,1.95823945]
[1752187468268,0.84839909,685.64,685.04,1.95823945]
[1752187468465,0.84839909,685.63,685.04,1.95823945]
[1752187468663,0.97691443,685.91,685.04,1.95823945]
[1752187468867,0.85034523,685.9,685.04,1.95823945]
[1752187469068,0.85034523,685.89,685.05,1.95823945]
[1752187469266,0.85034523,685.88,685.05,1.95823945]
[1752187469470,0.85034523,685.87,685.05,1.95823945]
[1752187469771,0.85034523,685.86,685.04,1.95823945]
[1752187469970,0.85034523,685.85,685.04,1.95823945]
[1752187470169,0.85034523,685.84,685.04,1.95823945]
[1752187470367,0.85034523,685.83,685.04,1.95823945]
[1752187470571,0.97691443,685.9,684.88,1.454]
[1752187470572,0.85034523,685.82,685.05,1.95823945]
[1752187470769,0.85034523,685.81,685.05,1.95823945]
[1752187470972,0.85034523,685.8,685.05,1.95823945]
[1752187471268,0.85034523,685.79,685.05,1.95823945]
[1752187471473,0.85034523,685.78,685.05,1.95823945]
[1752187471667,0.85034523,685.77,685.05,1.95823945]
[1752187471971,0.85034523,685.76,685.05,1.95823945]
[1752187472168,0.85034523,685.75,685.05,1.95823945]
[1752187472372,0.85034523,685.74,685.07,1.95823945]
[1752187472568,0.85034523,685.73,685.05,1.95823945]
[1752187472868,0.85034523,685.72,685.07,1.95823945]
[1752187473073,0.85034523,685.71,685.07,1.95823945]
[1752187473269,0.85034523,685.7,685.07,1.95823945]
[1752187473470,0.85034523,685.69,685.06,1.95823945]
[1752187473671,0.85034523,685.68,685.07,1.95823945]
[1752187473867,0.85034523,685.67,685.07,1.95823945]
[1752187474073,0.85034523,685.66,685.07,1.95823945]
[1752187474373,0.85034523,685.65,685.07,1.95823945]
[1752187474569,0.85034523,685.64,684.88,1.454]
[1752187474771,0.85034523,685.63,684.88,1.454]
[1752187474970,0.85034523,685.62,684.88,1.454]
[1752187475274,0.97691443,686.0,684.88,1.454]
[1752187475474,0.85035764,685.99,684.88,1.454]
[1752187475672,0.85035764,685.98,684.88,1.454]
[1752187475872,0.85035764,685.97,684.88,1.454]
[1752187476072,0.85035764,685.96,684.88,1.454]
[1752187476273,0.85035764,685.95,684.88,1.454]
[1752187476472,0.85035764,685.94,684.88,1.454]
[1752187476772,0.85035764,685.93,684.88,1.454]
[1752187476971,0.85035764,685.92,684.88,1.454]
[1752187477173,0.85035764,685.91,684.88,1.454]
[1752187477371,0.85035764,685.9,684.88,1.454]
[1752187477573,0.85035764,685.89,684.88,1.454]
[1752187477774,0.85035764,685.88,684.88,1.454]
[1752187478077,0.85035764,685.87,684.88,1.454]
[1752187478273,0.85035764,685.86,684.88,1.454]
[1752187478472,0.85035764,685.85,684.88,1.454]
[1752187478672,0.85035764,685.84,684.88,1.454]
[1752187478878,0.85035764,685.83,684.88,1.454]
[1752187479072,0.85035764,685.82,684.88,1.454]
[1752187479276,0.85035764,685.81,684.88,1.454]
[1752187479476,0.85035764,685.8,684.88,1.454]
[1752187479678,0.85035764,685.79,684.88,1.454]
[1752187479978,0.85035764,685.78,684.88,1.454]
[1752187480177,0.85035764,685.77,684.88,1.454]
[1752187480376,0.97691443,686.02,684.88,1.454]
[1752187480377,0.85035764,685.76,684.88,1.454]
[1752187480576,0.85035764,685.75,684.88,1.454]
[1752187480779,0.85035764,685.74,684.88,1.454]
[1752187480976,0.85035764,685.73,684.88,1.454]
[1752187481179,0.97691443,686.02,684.88,1.454]
[1752187481180,0.85035764,685.72,684.88,1.454]
[1752187481479,0.85035764,685.71,684.88,1.454]
[1752187481677,0.85035764,685.7,685.03,1.95823945]
[1752187481877,0.85035764,685.69,685.02,1.95823945]
[1752187482075,0.85035764,685.68,685.02,1.95823945]
[1752187482280,0.85035764,685.67,685.02,1.95823945]
[1752187482581,0.85035764,685.66,685.04,1.95823945]
[1752187482880,0.85035764,685.65,685.04,1.95823945]
[1752187483077,0.85035764,685.64,685.04,1.95823945]
[1752187483277,0.97691443,685.92,685.04,1.95823945]
[1752187483481,0.85035734,685.91,685.01,1.95823945]
[1752187483781,0.85035734,685.9,685.03,1.95823945]
[1752187483985,0.85035734,685.89,685.02,1.95823945]
[1752187484181,0.85035734,685.88,685.02,1.95823945]
[1752187484378,0.85035734,685.87,685.02,1.95823945]
[1752187484679,0.85035734,685.86,685.12,1.95823945]
[1752187484882,0.85035734,685.85,685.12,1.95823945]
[1752187485079,0.85035734,685.84,685.12,1.95823945]
[1752187485277,0.85035734,685.83,685.12,1.95823945]
[1752187485478,0.85035734,685.82,685.12,1.95823945]
[1752187485680,0.85035734,685.81,685.12,1.95823945]
[1752187485978,0.85035734,685.8,685.12,1.95823945]
[1752187486182,0.85035734,685.79,685.12,1.95823945]
[1752187486383,0.85035734,685.78,685.12,1.95823945]
[1752187486678,0.85035734,685.77,685.12,1.95823945]
[1752187486885,0.85035734,685.76,685.12,1.95823945]
[1752187487080,0.85035734,685.75,685.12,1.95823945]
[1752187487284,0.85035734,685.74,685.12,1.95823945]
[1752187487584,0.85035734,685.73,685.12,1.95823945]
[1752187487884,0.85035734,685.72,685.17,1.95823945]
[1752187488084,0.97691443,686.03,685.25,1.95823945]
[1752187488284,0.85019222,686.02,685.25,1.95823945]
[1752187488482,0.85019222,686.01,685.25,1.95823945]
[1752187488679,0.85019222,686.0,685.31,1.95823945]
[1752187488879,0.85019222,685.99,685.31,1.95823945]
[1752187489184,0.85019222,685.98,685.31,1.95823945]
[1752187489384,0.85019222,685.97,685.3,1.95823945]
[1752187489583,0.85019222,685.96,685.3,1.95823945]
[1752187489783,0.85019222,685.95,685.29,1.95823945]
[1752187489989,0.85019222,685.94,685.29,1.95823945]
[1752187490283,0.85019222,685.93,685.29,1.95823945]
[1752187490481,0.85019222,685.92,685.28,1.95823945]
[1752187490680,0.85019222,685.91,685.28,1.95823945]
[1752187490983,0.85019222,685.9,685.25,1.95823945]
[1752187491183,0.85019222,685.89,685.25,1.95823945]
[1752187491385,0.97691443,686.14,685.25,1.95823945]
[1752187491586,0.84892128,686.13,685.24,1.95823945]
[1752187491786,0.84892128,686.12,685.26,1.95823945]
[1752187491982,0.84892128,686.11,685.26,1.95823945]
[1752187492187,0.84892128,686.1,685.26,1.95823945]
[1752187492384,0.84892128,686.09,685.25,1.95823945]
[1752187492587,0.84892128,686.08,685.23,1.95823945]
[1752187492888,0.84892128,686.07,685.25,1.95823945]
[1752187493184,0.84892128,686.06,685.35,1.95823945]
[1752187493387,0.84892128,686.05,685.33,1.95823945]
[1752187493684,0.84892128,686.04,685.35,1.95823945]
[1752187493887,0.97691443,686.29,685.35,1.95823945]
[1752187494082,0.84757447,686.28,685.35,1.95823945]
[1752187494282,0.84757447,686.27,685.33,1.95823945]
[1752187494487,0.84757447,686.26,685.34,1.95823945]
[1752187494690,0.84757447,686.25,685.34,1.95823945]
[1752187494888,0.84757447,686.24,685.34,1.95823945]
[1752187495088,0.84757447,686.23,685.34,1.95823945]
[1752187495287,0.84757447,686.22,685.34,1.95823945]
[1752187495493,0.84757447,686.21,685.31,1.95823945]
[1752187495692,0.84757447,686.2,685.3,1.95823945]
[1752187495892,0.84757447,686.19,685.27,1.95823945]
[1752187496092,0.84757447,686.18,685.27,1.95823945]
[1752187496293,0.84757447,686.17,685.16,1.95823945]
[1752187496592,0.84757447,686.16,685.13,1.95823945]
[1752187496791,0.84757447,686.15,685.14,1.95823945]
[1752187496992,0.84757447,686.14,685.14,1.95823945]
[1752187497189,0.84757447,686.13,685.14,1.95823945]
[1752187497394,0.97691443,686.5,685.2,1.95823945]
[1752187497589,0.84590997,686.49,685.18,1.95823945]
[1752187497792,0.84590997,686.48,685.18,1.95823945]
[1752187497995,0.84590997,686.47,685.18,1.95823945]
[1752187498295,0.84590997,686.46,685.18,1.95823945]
[1752187498495,0.84590997,686.45,685.14,1.95823945]
[1752187498695,0.84590997,686.44,685.14,1.95823945]
[1752187498892,0.84590997,686.43,685.14,1.95823945]
[1752187499092,0.84590997,686.42,685.16,1.95823945]
[1752187499291,0.84590997,686.41,685.19,1.95823945]
[1752187499494,1.30951253,686.7,684.88,1.454]
[1752187499495,0.84590997,686.4,685.16,1.95823945]
[1752187499696,0.84590997,686.39,685.16,1.95823945]
[1752187499893,3.24767532,687.63,684.88,1.454]
[1752187499894,0.84590997,686.38,685.18,1.95823945]
[1752187500094,0.84590997,686.37,685.18,1.95823945]
[1752187500294,0.84590997,686.36,685.18,1.95823945]
[1752187500498,0.84590997,686.35,685.18,1.95823945]
[1752187500697,0.84590997,686.34,685.18,1.95823945]
[1752187500899,0.84590997,686.33,685.18,1.95823945]
[1752187501097,0.84590997,686.32,685.18,1.95823945]
[1752187501300,0.84590997,686.31,685.2,1.95823945]
[1752187501498,0.84590997,686.3,685.12,1.95823945]
[1752187501697,0.84590997,686.29,685.11,1.95823945]
[1752187501998,0.84590997,686.28,685.11,1.95823945]
[1752187502201,0.84590997,686.27,685.11,1.95823945]
[1752187502400,0.84590997,686.26,685.1,1.95823945]
[1752187502598,0.84590997,686.25,685.1,1.95823945]
[1752187502799,0.97691443,686.4,685.11,1.95823945]
[1752187502800,0.84590997,686.24,685.11,1.95823945]
[1752187502997,0.84590997,686.23,685.15,1.95823945]
[1752187503303,0.84590997,686.22,685.14,1.95823945]
[1752187503499,0.97691443,686.38,684.88,1.454]
[1752187503500,0.84590997,686.21,685.13,1.95823945]
[1752187503800,0.84590997,686.2,685.13,1.95823945]
[1752187504003,0.84590997,686.19,685.19,1.95823945]
[1752187504201,0.84590997,686.18,685.18,1.95823945]
[1752187504404,0.84590997,686.17,685.18,1.95823945]
[1752187504602,0.84590997,686.16,685.18,1.95823945]
[1752187504805,0.84590997,686.15,685.18,1.95823945]
[1752187505005,0.84590997,686.14,685.18,1.95823945]
[1752187505202,0.84590997,686.13,685.18,1.95823945]
[1752187505407,0.84590997,686.12,685.17,1.95823945]
[1752187505604,0.84590997,686.11,685.16,1.95823945]
[1752187505805,0.97691443,686.35,685.16,1.95823945]
[1752187506005,0.84408514,686.34,685.16,1.95823945]
[1752187506204,0.84408514,686.33,685.16,1.95823945]
[1752187506403,0.84408514,686.32,685.15,1.95823945]
[1752187506707,0.84408514,686.31,685.15,1.95823945]
[1752187507006,0.84408514,686.3,685.15,1.95823945]
[1752187507303,0.84408514,686.29,685.14,1.95823945]
[1752187507602,0.84408514,686.28,685.11,1.95823945]
[1752187507807,0.84408514,686.27,685.12,1.95823945]
[1752187508007,0.84408514,686.26,685.12,1.95823945]
[1752187508206,0.84408514,686.25,685.12,1.95823945]
[1752187508403,0.84408514,686.24,685.11,1.95823945]
[1752187508607,0.84408514,686.23,685.11,1.95823945]
[1752187508807,0.84408514,686.22,685.11,1.95823945]
[1752187509007,0.84408514,686.21,685.11,1.95823945]
[1752187509208,0.84408514,686.2,685.11,1.95823945]
[1752187509409,0.84408514,686.19,685.1,1.95823945]
[1752187509708,0.84408514,686.18,685.1,1.95823945]
[1752187509905,0.84408514,686.17,685.11,1.95823945]
[1752187510205,0.84408514,686.16,685.1,1.95823945]
[1752187510408,0.84408514,686.15,685.1,1.95823945]
[1752187510609,0.84408514,686.14,685.1,1.95823945]
[1752187510811,0.84408514,686.13,685.1,1.95823945]
[1752187511010,0.97691443,686.38,685.1,1.95823945]
[1752187511212,0.84348716,686.37,685.08,1.95823945]
[1752187511407,0.84348716,686.36,685.06,1.95823945]
[1752187511607,0.84348716,686.35,685.06,1.95823945]
[1752187511812,0.84348716,686.34,685.06,1.95823945]
[1752187512013,0.84348716,686.33,685.06,1.95823945]
[1752187512210,0.84348716,686.32,685.06,1.95823945]
[1752187512410,0.84348716,686.31,685.05,1.95823945]
[1752187512614,0.84348716,686.3,685.04,1.95823945]
[1752187512813,0.84348716,686.29,685.02,1.95823945]
[1752187513012,0.84348716,686.28,685.02,1.95823945]
[1752187513314,0.84348716,686.27,684.82,1.95823945]
[1752187513610,0.84348716,686.26,684.81,1.95823945]
[1752187513812,0.84348716,686.25,684.81,1.95823945]
[1752187514016,0.84348716,686.24,684.82,1.666]
[1752187514312,0.84348716,686.23,684.82,1.666]
[1752187514616,0.84348716,686.22,684.82,1.666]
[1752187514811,0.84348716,686.21,684.82,1.666]
[1752187515016,0.84348716,686.2,684.82,1.666]
[1752187515316,0.84348716,686.19,684.82,1.666]
[1752187515513,0.84348716,686.18,684.82,1.666]
[1752187515716,0.84348716,686.17,684.82,1.666]
[1752187515915,0.84348716,686.16,684.82,1.666]
[1752187516112,0.84348716,686.15,684.82,1.666]
[1752187516415,0.84348716,686.14,684.82,1.666]
[1752187516610,0.84348716,686.13,684.82,1.666]
[1752187516812,0.84348716,686.12,684.82,1.666]
[1752187517112,0.84348716,686.11,684.82,1.666]
[1752187517312,0.97691443,686.52,684.82,1.666]
[1752187517610,0.84339044,686.51,684.82,1.666]
[1752187517814,0.84339044,686.5,684.82,1.666]
[1752187518013,0.84339044,686.49,684.82,1.666]
[1752187518210,0.84339044,686.48,684.82,1.666]
[1752187518412,0.84339044,686.47,684.82,1.666]
[1752187518714,0.84339044,686.46,684.82,1.666]
[1752187518913,0.84339044,686.45,684.82,1.666]
[1752187519113,0.97691443,686.52,684.82,1.666]
[1752187519114,0.84339044,686.44,684.82,1.666]
[1752187519314,0.84339044,686.43,684.82,1.666]
[1752187519513,0.84339044,686.42,684.82,1.666]
[1752187519714,0.84339044,686.41,684.84,1.95823945]
[1752187519918,0.84339044,686.4,684.84,1.95823945]
[1752187520114,0.84339044,686.39,684.84,1.95823945]
[1752187520318,0.84339044,686.38,684.83,1.95823945]
[1752187520519,0.84339044,686.37,684.83,1.95823945]
[1752187520818,0.84339044,686.36,684.83,1.95823945]
[1752187521020,0.84339044,686.35,684.83,1.95823945]
[1752187521219,0.84339044,686.34,684.84,1.95823945]
[1752187521416,0.84339044,686.33,684.83,1.95823945]
[1752187521616,0.84339044,686.32,684.83,1.95823945]
[1752187521816,0.84339044,686.31,684.83,1.95823945]
[1752187522016,0.84339044,686.3,684.83,1.95823945]
[1752187522221,0.84339044,686.29,684.83,1.95823945]
[1752187522422,0.84339044,686.28,684.84,1.95823945]
[1752187522622,0.84339044,686.27,684.84,1.95823945]
[1752187522923,0.84339044,686.26,684.95,1.95823945]
[1752187523217,0.84339044,686.25,684.95,1.95823945]
[1752187523424,0.84339044,686.24,684.95,1.95823945]
[1752187523722,0.84339044,686.23,684.95,1.95823945]
[1752187524018,0.25357316,686.84,684.82,1.666]
[1752187524019,0.84339044,686.22,684.99,1.95823945]
[1752187524219,0.84339044,686.21,684.99,1.95823945]
[1752187524423,0.84339044,686.2,684.99,1.95823945]
[1752187524622,0.84339044,686.19,684.99,1.95823945]
[1752187524820,0.84339044,686.18,684.99,1.95823945]
[1752187525019,0.84339044,686.17,684.99,1.95823945]
[1752187525223,0.84339044,686.16,684.99,1.95823945]
[1752187525523,0.84339044,686.15,684.99,1.95823945]
[1752187525819,0.84339044,686.14,684.99,1.95823945]
[1752187526024,0.97691443,686.48,684.99,1.95823945]
[1752187526323,0.84306423,686.47,684.99,1.95823945]
[1752187526523,0.84306423,686.46,684.99,1.95823945]
[1752187526719,0.84306423,686.45,684.99,1.95823945]
[1752187527023,0.84306423,686.44,685.0,1.95823945]
[1752187527222,0.84306423,686.43,685.0,1.95823945]
[1752187527422,0.84306423,686.42,685.0,1.95823945]
[1752187527619,0.84306423,686.41,685.09,1.95823945]
[1752187527817,0.97691443,686.43,685.09,1.95823945]
[1752187527818,0.84306423,686.4,685.09,1.95823945]
[1752187528018,0.84306423,686.39,685.09,1.95823945]
[1752187528317,0.84306423,686.38,685.09,1.95823945]
[1752187528522,0.84306423,686.37,685.1,1.95823945]
[1752187528723,0.84306423,686.36,685.1,1.95823945]
[1752187529018,0.84306423,686.35,685.1,1.95823945]
[1752187529319,0.84306423,686.34,685.1,1.95823945]
[1752187529521,0.84306423,686.33,685.11,1.95823945]
[1752187529720,0.84306423,686.32,685.09,1.95823945]
[1752187529923,0.84306423,686.31,685.09,1.95823945]
[1752187530123,0.84306423,686.3,685.09,1.95823945]
[1752187530323,0.84306423,686.29,685.1,1.95823945]
[1752187530521,0.84306423,686.28,685.1,1.95823945]
[1752187530720,0.84306423,686.27,685.1,1.95823945]
[1752187530921,0.84306423,686.26,685.1,1.95823945]
[1752187531123,0.84306423,686.25,685.1,1.95823945]
[1752187531325,0.84306423,686.24,685.12,1.95823945]